fUST/lending_fUST_20250719
["ID","MTS","AMOUNT","RATE_DAILY","PERIOD"]
[373195932,1752901844576,-460.0,0.00016986,2]
[373195934,1752901844586,-460.0,0.00016986,2]
[373195936,1752901844595,-471.16920484,0.00016986,2]
[373195938,1752901844603,-460.0,0.00016986,2]
[373195940,1752901844612,-460.0,0.00016986,2]
[373195941,1752901844621,-252.17,0.00016986,2]
[373195943,1752901844631,-460.0,0.00016986,2]
[373195946,1752901844641,-460.0,0.00016986,2]
[373195947,1752901844650,-460.0,0.00016986,2]
[373195950,1752901844663,-460.0,0.00016986,2]
[373195951,1752901844672,-460.0,0.00016986,2]
[373195954,1752901844682,-460.0,0.00016986,2]
[373195955,1752901844691,-460.0,0.00016986,2]
[373195958,1752901844701,-460.0,0.00016986,2]
[373195960,1752901844710,-460.0,0.00016986,2]
[373195961,1752901844719,-460.0,0.00016986,2]
[373195963,1752901844728,-460.0,0.00016986,2]
[373195965,1752901844741,-460.0,0.00016986,2]
[373195967,1752901844750,-460.0,0.00016986,2]
[373195969,1752901844760,-464.82146395,0.00016986,2]
[373195971,1752901844769,-4149.59,0.00016986,2]
[373195973,1752901844779,-460.0,0.00016986,2]
[373195975,1752901844788,-460.0,0.00016986,2]
[373195977,1752901844797,-460.0,0.00016986,2]
[373195979,1752901844807,-460.0,0.00016986,2]
[373195981,1752901844818,-460.0,0.00016986,2]
[373195983,1752901844828,-460.0,0.00016986,2]
[373195985,1752901844837,-460.0,0.00016986,2]
[373195987,1752901844846,-460.0,0.00016986,2]
[373195989,1752901844855,-460.0,0.00016986,2]
[373196002,1752901844972,-460.0,0.00016986,2]
[373196005,1752901844982,-178.24103864,0.00016986,2]
[373196007,1752901844995,-460.0,0.00016986,2]
[373196009,1752901845004,-252.65842997,0.00016986,2]
[373196011,1752901845015,-460.0,0.00016986,2]
[373196013,1752901845025,-460.0,0.00016986,2]
[373196015,1752901845035,-460.0,0.00016986,2]
[373196017,1752901845044,-3019.31,0.00016986,2]
[373196019,1752901845054,-460.0,0.00016986,2]
[373196021,1752901845063,-460.0,0.00016986,2]
[373196023,1752901845073,-460.0,0.00016986,2]
[373196025,1752901845082,-465.5643593,0.00016986,2]
[373196027,1752901845091,-460.0,0.00016986,2]
[373196029,1752901845101,-460.0,0.00016986,2]
[373196031,1752901845111,-460.0,0.00016986,2]
[373196033,1752901845120,-460.0,0.00016986,2]
[373196035,1752901845129,-1614.57,0.00016986,2]
[373196037,1752901845139,-931.55,0.00016986,2]
[373196039,1752901845148,-460.0,0.00016986,2]
[373196041,1752901845158,-477.18,0.00016986,2]
[373196043,1752901845167,-460.0,0.00016986,2]
[373196045,1752901845176,-500.0,0.00016986,2]
[373196047,1752901845186,-2435.3,0.00016986,2]
[373196049,1752901845195,-460.0,0.00016986,2]
[373196051,1752901845205,-563.37,0.00016986,2]
[373196053,1752901845214,-464.4451644,0.00016986,2]
[373196055,1752901845224,-460.0,0.00016986,2]
[373196057,1752901845233,-460.0,0.00016986,2]
[373196059,1752901845243,-460.0,0.00016986,2]
[373196061,1752901845252,-460.0,0.00016986,2]
[373196063,1752901845262,-1057.4,0.00016986,2]
[373196065,1752901845271,-460.0,0.00016986,2]
[373196067,1752901845281,-1360.49,0.00016986,2]
[373196069,1752901845290,-460.0,0.00016986,2]
[373196071,1752901845300,-1914.01,0.00016986,2]
[373196073,1752901845309,-460.0,0.00016986,2]
[373196075,1752901845319,-460.0,0.00016986,2]
[373196077,1752901845328,-460.0,0.00016986,2]
[373196079,1752901845338,-460.0,0.00016986,2]
[373196081,1752901845347,-460.0,0.00016986,2]
[373196083,1752901845357,-968.39,0.00016986,2]
[373196085,1752901845367,-725.11,0.00016986,2]
[373196087,1752901845376,-460.0,0.00016986,2]
[373196089,1752901845386,-1104.82,0.00016986,2]
[373196091,1752901845395,-460.0,0.00016986,2]
[373196093,1752901845404,-460.0,0.00016986,2]
[373196095,1752901845414,-460.0,0.00016986,2]
[373196097,1752901845423,-460.0,0.00016986,2]
[373196099,1752901845432,-460.0,0.00016986,2]
[373196101,1752901845441,-1360.37,0.00016986,2]
[373196103,1752901845450,-460.0,0.00016986,2]
[373196106,1752901845460,-495.49,0.00016986,2]
[373196108,1752901845469,-604.51,0.00016986,2]
[373196110,1752901845478,-460.0,0.00016986,2]
[373196112,1752901845487,-460.0,0.00016986,2]
[373196114,1752901845498,-460.0,0.00016986,2]
[373196116,1752901845508,-460.0,0.00016986,2]
[373196119,1752901845518,-205.45351343,0.00016986,2]
[373196122,1752901845527,-460.0,0.00016986,2]
[373196124,1752901845537,-499.63693295,0.00016986,2]
[373196125,1752901845546,-460.0,0.00016986,2]
[373196126,1752901845556,-460.0,0.00016986,2]
[373196127,1752901845565,-460.0,0.00016986,2]
[373196128,1752901845575,-339.91697244,0.00016986,2]
[373196129,1752901845584,-460.0,0.00016986,2]
[373196130,1752901845593,-2108.73,0.00016986,2]
[373196131,1752901845603,-460.0,0.00016986,2]
[373196132,1752901845612,-460.0,0.00016986,2]
[373196133,1752901845622,-460.0,0.00016986,2]
[373196134,1752901845631,-466.73,0.00016986,2]
[373196135,1752901845641,-460.0,0.00016986,2]
[373196136,1752901845650,-460.0,0.00016986,2]
[373196137,1752901845659,-461.16205515,0.00016986,2]
[373196138,1752901845669,-460.0,0.00016986,2]
[373196139,1752901845679,-460.0,0.00016986,2]
[373196140,1752901845688,-460.0,0.00016986,2]
[373196141,1752901845698,-460.0,0.00016986,2]
[373196142,1752901845708,-460.0,0.00016986,2]
[373196143,1752901845717,-470.56178733,0.00016986,2]
[373196144,1752901845727,-509.17789306,0.00016986,2]
[373196145,1752901845740,-460.0,0.00016986,2]
[373196146,1752901845750,-1978.91,0.00016986,2]
[373196147,1752901845759,-460.0,0.00016986,2]
[373196148,1752901845769,-460.0,0.00016986,2]
[373196149,1752901845778,-1186.75,0.00016986,2]
[373196151,1752901845787,-460.0,0.00016986,2]
[373196153,1752901845797,-460.0,0.00016986,2]
[373196155,1752901845807,-460.0,0.00016986,2]
[373196158,1752901845816,-460.0,0.00016986,2]
[373196160,1752901845826,-460.0,0.00016986,2]
[373196161,1752901845836,-460.0,0.00016986,2]
[373196163,1752901845845,-460.0,0.00016986,2]
[373196165,1752901845855,-533.38,0.00016986,2]
[373196168,1752901845865,-460.0,0.00016986,2]
[373196170,1752901845874,-460.0,0.00016986,2]
[373196171,1752901845883,-460.0,0.00016986,2]
[373196173,1752901845893,-460.0,0.00016986,2]
[373196175,1752901845902,-460.0,0.00016986,2]
[373196177,1752901845912,-460.0,0.00016986,2]
[373196179,1752901845921,-460.0,0.00016986,2]
[373196181,1752901845931,-460.0,0.00016986,2]
[373196183,1752901845941,-460.0,0.00016986,2]
[373196185,1752901845950,-460.0,0.00016986,2]
[373196187,1752901845959,-463.43577304,0.00016986,2]
[373196188,1752901845969,-1561.96,0.00016986,2]
[373196189,1752901845978,-460.0,0.00016986,2]
[373196191,1752901845988,-460.0,0.00016986,2]
[373196193,1752901845998,-460.0,0.00016986,2]
[373196195,1752901846007,-866.93,0.00016986,2]
[373196197,1752901846017,-460.0,0.00016986,2]
[373196199,1752901846026,-460.0,0.00016986,2]
[373196201,1752901846035,-460.0,0.00016986,2]
[373196203,1752901846044,-460.0,0.00016986,2]
[373196205,1752901846053,-460.0,0.00016986,2]
[373196207,1752901846062,-500.0,0.00017021,2]
[373196209,1752901846072,-500.38190345,0.00017024,2]
[373196211,1752901846082,-501.04995706,0.00017024,2]
[373196213,1752901846091,-500.0,0.00017024,2]
[373196214,1752901846103,-502.51153415,0.00017024,2]
[373196215,1752901846112,-500.0,0.00017024,2]
[373196216,1752901846122,-500.0,0.00017056,2]
[373196217,1752901846132,-500.0,0.00017056,2]
[373196218,1752901846142,-500.0,0.00017056,2]
[373196219,1752901846152,-500.0,0.00017056,2]
[373196220,1752901846162,-500.0,0.00017056,2]
[373196221,1752901846172,-500.0,0.00017056,2]
[373196222,1752901846182,-500.89162979,0.00017056,2]
[373196223,1752901846191,-500.0,0.00017056,2]
[373196224,1752901846201,-158.11665188,0.00017056,2]
[373196225,1752901846212,-500.37011798,0.00017056,2]
[373196226,1752901846221,-500.0,0.00017056,2]
[373196227,1752901846230,-500.0,0.00017058,2]
[373196228,1752901846240,-209.87789923,0.00017068,3]
[373196229,1752901846249,-379.63864515,0.00017173,2]
[373196230,1752901846260,-500.0,0.00017173,2]
[373196231,1752901846270,-500.0,0.00017173,2]
[373196232,1752901846280,-4814.13617925,0.00017176,2]
[373196234,1752901846290,-535.41929037,0.0001726,2]
[373196236,1752901846300,-460.0,0.0001726,2]
[373196238,1752901846309,-276.78973699,0.0001726,2]
[373196240,1752901846319,-179.94604781,0.0001726,2]
[373196242,1752901846329,-543.85820281,0.0001726,2]
[373196244,1752901846338,-460.0,0.0001726,2]
[373196246,1752901846348,-460.0,0.0001726,2]
[373196248,1752901846357,-222.69535022,0.0001726,2]
[373196250,1752901846367,-460.0,0.0001726,2]
[373196252,1752901846376,-460.0,0.0001726,2]
[373196254,1752901846386,-460.0,0.0001726,2]
[373196256,1752901846395,-460.0,0.0001726,2]
[373196258,1752901846404,-460.0,0.0001726,2]
[373196260,1752901846414,-460.0,0.0001726,2]
[373196262,1752901846423,-266.83211746,0.0001726,2]
[373196264,1752901846433,-460.0,0.0001726,2]
[373196266,1752901846442,-460.0,0.0001726,2]
[373196268,1752901846451,-4149.59,0.0001726,2]
[373196270,1752901846461,-167.92809041,0.0001726,2]
[373196272,1752901846470,-460.0,0.0001726,2]
[373196274,1752901846479,-460.0,0.0001726,2]
[373196276,1752901846489,-460.0,0.0001726,2]
[373196278,1752901846498,-460.0,0.0001726,2]
[373196279,1752901846508,-460.0,0.0001726,2]
[373196281,1752901846517,-460.0,0.0001726,2]
[373196283,1752901846527,-460.0,0.0001726,2]
[373196286,1752901846536,-460.0,0.0001726,2]
[373196287,1752901846545,-460.0,0.0001726,2]
[373196289,1752901846555,-3019.31,0.0001726,2]
[373196291,1752901846564,-482.5971525,0.0001726,2]
[373196292,1752901846574,-460.0,0.0001726,2]
[373196294,1752901846583,-460.0,0.0001726,2]
[373196296,1752901846592,-460.0,0.0001726,2]
[373196298,1752901846601,-460.0,0.0001726,2]
[373196300,1752901846611,-1614.57,0.0001726,2]
[373196302,1752901846620,-931.55,0.0001726,2]
[373196303,1752901846629,-460.0,0.0001726,2]
[373196304,1752901846638,-477.18,0.0001726,2]
[373196305,1752901846647,-460.0,0.0001726,2]
[373196306,1752901846656,-2435.3,0.0001726,2]
[373196307,1752901846665,-563.37,0.0001726,2]
[373196308,1752901846674,-460.0,0.0001726,2]
[373196309,1752901846683,-460.0,0.0001726,2]
[373196310,1752901846692,-460.0,0.0001726,2]
[373196311,1752901846701,-460.0,0.0001726,2]
[373196312,1752901846710,-1057.4,0.0001726,2]
[373196313,1752901846719,-460.0,0.0001726,2]
[373196314,1752901846728,-1360.49,0.0001726,2]
[373196315,1752901846739,-460.0,0.0001726,2]
[373196316,1752901846750,-1914.01,0.0001726,2]
[373196317,1752901846759,-460.0,0.0001726,2]
[373196318,1752901846768,-460.0,0.0001726,2]
[373196319,1752901846777,-460.0,0.0001726,2]
[373196320,1752901846789,-460.0,0.0001726,2]
[373196321,1752901846798,-968.39,0.0001726,2]
[373196322,1752901846807,-725.11,0.0001726,2]
[373196323,1752901846818,-460.0,0.0001726,2]
[373196324,1752901846827,-1104.82,0.0001726,2]
[373196326,1752901846837,-460.0,0.0001726,2]
[373196327,1752901846846,-460.0,0.0001726,2]
[373196329,1752901846856,-460.0,0.0001726,2]
[373196331,1752901846865,-1360.37,0.0001726,2]
[373196333,1752901846874,-495.49,0.0001726,2]
[373196336,1752901846885,-604.51,0.0001726,2]
[373196337,1752901846894,-460.0,0.0001726,2]
[373196339,1752901846904,-460.0,0.0001726,2]
[373196341,1752901846913,-460.0,0.0001726,2]
[373196342,1752901846922,-460.0,0.0001726,2]
[373196343,1752901846932,-460.0,0.0001726,2]
[373196344,1752901846941,-460.0,0.0001726,2]
[373196345,1752901846951,-460.0,0.0001726,2]
[373196346,1752901846960,-467.71374881,0.0001726,2]
[373196347,1752901846970,-460.0,0.0001726,2]
[373196348,1752901846979,-2108.73,0.0001726,2]
[373196349,1752901846988,-460.0,0.0001726,2]
[373196350,1752901846997,-460.0,0.0001726,2]
[373196351,1752901847006,-466.73,0.0001726,2]
[373196352,1752901847016,-460.0,0.0001726,2]
[373196353,1752901847026,-460.0,0.0001726,2]
[373196354,1752901847035,-460.0,0.0001726,2]
[373196355,1752901847044,-460.0,0.0001726,2]
[373196356,1752901847053,-460.0,0.0001726,2]
[373196357,1752901847063,-460.0,0.0001726,2]
[373196358,1752901847072,-460.0,0.0001726,2]
[373196359,1752901847082,-460.0,0.0001726,2]
[373196360,1752901847092,-460.0,0.0001726,2]
[373196361,1752901847103,-1978.91,0.0001726,2]
[373196362,1752901847112,-460.0,0.0001726,2]
[373196363,1752901847122,-1186.75,0.0001726,2]
[373196364,1752901847131,-460.0,0.0001726,2]
[373196365,1752901847141,-460.0,0.0001726,2]
[373196366,1752901847151,-460.0,0.0001726,2]
[373196367,1752901847160,-460.0,0.0001726,2]
[373196368,1752901847169,-460.0,0.0001726,2]
[373196369,1752901847179,-267.63668064,0.0001726,2]
[373196370,1752901847188,-533.38,0.0001726,2]
[373196371,1752901847199,-514.29946652,0.0001726,2]
[373196372,1752901847208,-460.0,0.0001726,2]
[373196373,1752901847218,-460.0,0.0001726,2]
[373196374,1752901847228,-460.0,0.0001726,2]
[373196375,1752901847238,-460.0,0.0001726,2]
[373196376,1752901847248,-285.85910986,0.0001726,2]
[373196377,1752901847257,-460.0,0.0001726,2]
[373196378,1752901847267,-460.0,0.0001726,2]
[373196379,1752901847277,-460.0,0.0001726,2]
[373196380,1752901847287,-460.0,0.0001726,2]
[373196381,1752901847296,-460.0,0.0001726,2]
[373196382,1752901847306,-1561.96,0.0001726,2]
[373196383,1752901847315,-460.0,0.0001726,2]
[373196384,1752901847325,-460.0,0.0001726,2]
[373196385,1752901847334,-866.93,0.0001726,2]
[373196386,1752901847343,-460.0,0.0001726,2]
[373196387,1752901847353,-460.0,0.0001726,2]
[373196388,1752901847451,-460.0,0.0001726,2]
[373196389,1752901847471,-500.78490054,0.00017265,2]
[373196390,1752901847481,-212.74842167,0.00017265,2]
[373196391,1752901847490,-500.0,0.00017265,2]
[373196392,1752901847500,-334.9365324,0.00017265,3]
[373196393,1752901847509,-1730.99,0.000173,2]
[373196394,1752901847519,-228.11352469,0.00017304,2]
[373196395,1752901847528,-500.0,0.00017307,2]
[373196396,1752901847538,-1018.97072283,0.00017321,2]
[373196397,1752901847548,-500.99229785,0.00017321,2]
[373196398,1752901847557,-1000.0,0.00017321,2]
[373196399,1752901847567,-1000.0,0.00017321,2]
[373196400,1752901847576,-920.24987284,0.00017331,2]
[373196401,1752901847585,-200.86567536,0.00017331,2]
[373196402,1752901847595,-920.24987284,0.00017331,2]
[373196403,1752901847605,-500.0,0.00017331,2]
[373196404,1752901847615,-920.24987284,0.00017331,2]
[373196405,1752901847624,-920.24987284,0.00017331,2]
[373196406,1752901847634,-920.24987284,0.00017331,2]
[373196407,1752901847644,-920.24987284,0.00017331,2]
[373196408,1752901847653,-920.24987284,0.00017331,2]
[373196409,1752901847662,-920.24987284,0.00017331,2]
[373196410,1752901847671,-920.24987284,0.00017331,2]
[373196411,1752901847681,-920.24987284,0.00017331,2]
[373196412,1752901847690,-920.24987284,0.00017331,2]
[373196413,1752901847699,-920.24987284,0.00017331,2]
[373196414,1752901847709,-920.24987284,0.00017331,2]
[373196415,1752901847719,-920.24987284,0.00017331,2]
[373196416,1752901847729,-920.24987284,0.00017331,2]
[373196417,1752901847740,-920.24987284,0.00017331,2]
[373196418,1752901847749,-920.24987284,0.00017331,2]
[373196419,1752901847759,-500.0,0.00017332,2]
[373196420,1752901847769,-500.0,0.00017361,2]
[373196421,1752901847777,-261.0,0.00017377,2]
[373196422,1752901847787,-500.0,0.00017425,2]
[373196423,1752901847796,-4814.13617925,0.00017452,2]
[373196424,1752901847806,-500.0,0.00017533,2]
[373196425,1752901847815,-460.0,0.00017534,2]
[373196426,1752901847824,-460.0,0.00017534,2]
[373196427,1752901847834,-460.0,0.00017534,2]
[373196428,1752901847843,-460.0,0.00017534,2]
[373196429,1752901847853,-460.0,0.00017534,2]
[373196430,1752901847863,-460.0,0.00017534,2]
[373196431,1752901847873,-460.0,0.00017534,2]
[373196432,1752901847882,-460.0,0.00017534,2]
[373196433,1752901847892,-460.0,0.00017534,2]
[373196434,1752901847901,-460.0,0.00017534,2]
[373196435,1752901847911,-4149.59,0.00017534,2]
[373196436,1752901847920,-460.0,0.00017534,2]
[373196437,1752901847930,-460.0,0.00017534,2]
[373196438,1752901847940,-460.0,0.00017534,2]
[373196439,1752901847949,-460.0,0.00017534,2]
[373196440,1752901847959,-460.0,0.00017534,2]
[373196441,1752901847968,-460.0,0.00017534,2]
[373196442,1752901847978,-460.0,0.00017534,2]
[373196443,1752901847987,-460.0,0.00017534,2]
[373196444,1752901847997,-3019.31,0.00017534,2]
[373196445,1752901848006,-460.0,0.00017534,2]
[373196446,1752901848016,-460.0,0.00017534,2]
[373196447,1752901848025,-460.0,0.00017534,2]
[373196448,1752901848035,-460.0,0.00017534,2]
[373196449,1752901848044,-1614.57,0.00017534,2]
[373196450,1752901848054,-931.55,0.00017534,2]
[373196451,1752901848064,-460.0,0.00017534,2]
[373196452,1752901848075,-477.18,0.00017534,2]
[373196453,1752901848084,-460.0,0.00017534,2]
[373196454,1752901848094,-2435.3,0.00017534,2]
[373196455,1752901848104,-563.37,0.00017534,2]
[373196456,1752901848114,-460.0,0.00017534,2]
[373196457,1752901848124,-460.0,0.00017534,2]
[373196458,1752901848134,-1057.4,0.00017534,2]
[373196459,1752901848144,-460.0,0.00017534,2]
[373196460,1752901848153,-1360.49,0.00017534,2]
[373196461,1752901848163,-1914.01,0.00017534,2]
[373196462,1752901848173,-460.0,0.00017534,2]
[373196463,1752901848182,-460.0,0.00017534,2]
[373196464,1752901848192,-460.0,0.00017534,2]
[373196465,1752901848202,-968.39,0.00017534,2]
[373196466,1752901848211,-460.0,0.00017534,2]
[373196467,1752901848221,-725.11,0.00017534,2]
[373196468,1752901848231,-460.0,0.00017534,2]
[373196469,1752901848241,-1104.82,0.00017534,2]
[373196470,1752901848250,-460.0,0.00017534,2]
[373196471,1752901848260,-460.0,0.00017534,2]
[373196472,1752901848269,-460.0,0.00017534,2]
[373196473,1752901848279,-1360.37,0.00017534,2]
[373196474,1752901848288,-495.49,0.00017534,2]
[373196475,1752901848299,-604.51,0.00017534,2]
[373196476,1752901848308,-460.0,0.00017534,2]
[373196477,1752901848318,-460.0,0.00017534,2]
[373196478,1752901848327,-460.0,0.00017534,2]
[373196479,1752901848337,-472.3745634,0.00017534,2]
[373196480,1752901848346,-460.0,0.00017534,2]
[373196481,1752901848358,-460.0,0.00017534,2]
[373196482,1752901848368,-460.0,0.00017534,2]
[373196483,1752901848377,-460.0,0.00017534,2]
[373196484,1752901848387,-2108.73,0.00017534,2]
[373196485,1752901848396,-460.0,0.00017534,2]
[373196486,1752901848407,-460.0,0.00017534,2]
[373196487,1752901848416,-466.73,0.00017534,2]
[373196488,1752901848426,-460.0,0.00017534,2]
[373196489,1752901848436,-460.0,0.00017534,2]
[373196490,1752901848446,-460.0,0.00017534,2]
[373196491,1752901848455,-460.0,0.00017534,2]
[373196492,1752901848465,-460.0,0.00017534,2]
[373196493,1752901848477,-460.0,0.00017534,2]
[373196494,1752901848487,-460.0,0.00017534,2]
[373196495,1752901848496,-460.0,0.00017534,2]
[373196496,1752901848506,-1978.91,0.00017534,2]
[373196497,1752901848515,-460.0,0.00017534,2]
[373196498,1752901848525,-460.0,0.00017534,2]
[373196499,1752901848535,-1186.75,0.00017534,2]
[373196500,1752901848545,-460.0,0.00017534,2]
[373196501,1752901848554,-460.0,0.00017534,2]
[373196502,1752901848564,-460.0,0.00017534,2]
[373196503,1752901848576,-533.38,0.00017534,2]
[373196504,1752901848586,-460.0,0.00017534,2]
[373196505,1752901848602,-460.0,0.00017534,2]
[373196506,1752901848616,-460.0,0.00017534,2]
[373196507,1752901848632,-460.0,0.00017534,2]
[373196508,1752901848645,-333.31433477,0.00017534,2]
[373196509,1752901848657,-460.0,0.00017534,2]
[373196510,1752901848671,-460.0,0.00017534,2]
[373196511,1752901848683,-460.0,0.00017534,2]
[373196512,1752901848697,-460.0,0.00017534,2]
[373196513,1752901848712,-1561.96,0.00017534,2]
[373196514,1752901848724,-460.0,0.00017534,2]
[373196515,1752901848739,-460.0,0.00017534,2]
[373196516,1752901848753,-866.93,0.00017534,2]
[373196517,1752901848766,-460.0,0.00017534,2]
[373196518,1752901848778,-460.0,0.00017534,2]
[373196519,1752901848793,-460.0,0.00017534,2]
[373196520,1752901848804,-312.0,0.0001754,2]
[373196521,1752901848817,-800.0,0.00017542,2]
[373196522,1752901848831,-911.94009619,0.00017572,2]
[373196523,1752901848844,-1000.0,0.00017604,2]
[373196524,1752901848858,-500.0,0.00017604,2]
[373196525,1752901848870,-302.17969699,0.00017604,2]
[373196526,1752901848883,-971.66974233,0.00017604,2]
[373196527,1752901848894,-500.69722503,0.00017604,2]
[373196528,1752901848907,-1000.0,0.00017604,2]
[373196529,1752901848920,-564.31978639,0.00017604,2]
[373196530,1752901848933,-1332.94176204,0.00017605,2]
[373196531,1752901848946,-193.52807795,0.00017606,2]
[373196532,1752901848960,-500.0,0.00017606,2]
[373196533,1752901848973,-500.0,0.00017721,2]
[373196534,1752901848987,-4814.13617925,0.00017728,2]
[373196535,1752901848998,-307.42,0.00017798,3]
[373196536,1752901849008,-1284.36,0.00017798,3]
[373196537,1752901849019,-642.18,0.00017798,3]
[373196538,1752901849031,-500.0,0.00017804,2]
[373196539,1752901849046,-460.0,0.00017808,2]
[373196540,1752901849060,-372.23364981,0.00017808,2]
[373196541,1752901849071,-460.0,0.00017808,2]
[373196542,1752901849083,-460.0,0.00017808,2]
[373196543,1752901849095,-520.3,0.00017808,2]
[373196544,1752901849109,-460.0,0.00017808,2]
[373196545,1752901849122,-460.0,0.00017808,2]
[373196546,1752901849134,-476.15220808,0.00017808,2]
[373196547,1752901849145,-460.0,0.00017808,2]
[373196548,1752901849157,-493.41,0.00017808,2]
[373196549,1752901849168,-4149.59,0.00017808,2]
[373196550,1752901849180,-460.0,0.00017808,2]
[373196551,1752901849191,-460.0,0.00017808,2]
[373196552,1752901849203,-460.0,0.00017808,2]
[373196553,1752901849215,-460.0,0.00017808,2]
[373196554,1752901849227,-460.0,0.00017808,2]
[373196555,1752901849238,-3019.31,0.00017808,2]
[373196556,1752901849250,-251.1,0.00017808,2]
[373196557,1752901849262,-460.0,0.00017808,2]
[373196558,1752901849274,-460.0,0.00017808,2]
[373196559,1752901849286,-460.0,0.00017808,2]
[373196560,1752901849297,-1614.57,0.00017808,2]
[373196561,1752901849309,-931.55,0.00017808,2]
[373196562,1752901849321,-460.0,0.00017808,2]
[373196563,1752901849333,-477.18,0.00017808,2]
[373196564,1752901849345,-460.0,0.00017808,2]
[373196565,1752901849359,-2435.3,0.00017808,2]
[373196566,1752901849371,-563.37,0.00017808,2]
[373196567,1752901849383,-460.0,0.00017808,2]
[373196568,1752901849394,-242.06,0.00017808,2]
[373196569,1752901849406,-1057.4,0.00017808,2]
[373196570,1752901849417,-460.0,0.00017808,2]
[373196571,1752901849429,-1360.49,0.00017808,2]
[373196572,1752901849441,-1914.01,0.00017808,2]
[373196573,1752901849452,-460.0,0.00017808,2]
[373196574,1752901849463,-460.0,0.00017808,2]
[373196575,1752901849475,-460.0,0.00017808,2]
[373196576,1752901849486,-968.39,0.00017808,2]
[373196577,1752901849498,-460.0,0.00017808,2]
[373196578,1752901849510,-725.11,0.00017808,2]
[373196579,1752901849522,-1104.82,0.00017808,2]
[373196580,1752901849533,-460.0,0.00017808,2]
[373196581,1752901849545,-460.0,0.00017808,2]
[373196582,1752901849556,-460.0,0.00017808,2]
[373196583,1752901849568,-1360.37,0.00017808,2]
[373196584,1752901849579,-495.49,0.00017808,2]
[373196585,1752901849591,-604.51,0.00017808,2]
[373196586,1752901849603,-460.0,0.00017808,2]
[373196587,1752901849615,-460.0,0.00017808,2]
[373196588,1752901849626,-460.0,0.00017808,2]
[373196589,1752901849638,-460.0,0.00017808,2]
[373196590,1752901849649,-460.0,0.00017808,2]
[373196591,1752901849661,-460.0,0.00017808,2]
[373196592,1752901849672,-2108.73,0.00017808,2]
[373196593,1752901849684,-460.0,0.00017808,2]
[373196594,1752901849695,-460.0,0.00017808,2]
[373196595,1752901849707,-466.73,0.00017808,2]
[373196596,1752901849718,-460.0,0.00017808,2]
[373196597,1752901849730,-460.0,0.00017808,2]
[373196598,1752901849744,-460.0,0.00017808,2]
[373196599,1752901849755,-460.0,0.00017808,2]
[373196600,1752901849766,-460.0,0.00017808,2]
[373196601,1752901849778,-490.7042202,0.00017808,2]
[373196602,1752901849789,-460.0,0.00017808,2]
[373196603,1752901849801,-1978.91,0.00017808,2]
[373196604,1752901849814,-460.0,0.00017808,2]
[373196605,1752901849825,-460.0,0.00017808,2]
[373196606,1752901849837,-1186.75,0.00017808,2]
[373196607,1752901849848,-460.0,0.00017808,2]